[Event "*** Titled Tuesday Blitz"]
[Site "Chess.com"]
[Date "2020.02.04"]
[Round "2"]
[White "LiemLe"]
[Black "guillembaches"]
[Result "1-0"]
[WhiteElo "2991"]
[BlackElo "2369"]
[TimeControl "180+2"]
[EndTime "9:23:25 PST"]
[Termination "LiemLe won by resignation"]

1. e4 {[%clk 0:03:01.9]} 1... c5 {[%clk 0:03:00.5]} 2. Nf3 {[%clk 0:03:02.5]}
2... d6 {[%clk 0:03:01.8]} 3. d4 {[%clk 0:03:04]} 3... cxd4 {[%clk 0:03:03.7]}
4. Nxd4 {[%clk 0:03:05.8]} 4... Nf6 {[%clk 0:03:05]} 5. Nc3 {[%clk 0:03:07.4]}
5... a6 {[%clk 0:03:06.2]} 6. h3 {[%clk 0:03:08.9]} 6... e5 {[%clk 0:03:07.2]}
7. Nb3 {[%clk 0:03:09.7]} 7... Be6 {[%clk 0:03:01.2]} 8. f4 {[%clk 0:03:10.5]}
8... Be7 {[%clk 0:02:55]} 9. f5 {[%clk 0:03:10.9]} 9... Bd7 {[%clk 0:02:55.6]}
10. g4 {[%clk 0:03:07]} 10... Bc6 {[%clk 0:02:52.6]} 11. Bg2 {[%clk 0:03:07.2]}
11... h6 {[%clk 0:02:50.2]} 12. Be3 {[%clk 0:03:06.6]} 12... b5 {[%clk
0:02:46.8]} 13. Qd2 {[%clk 0:02:59.3]} 13... b4 {[%clk 0:02:39.3]} 14. Nd5
{[%clk 0:02:55.2]} 14... Bxd5 {[%clk 0:02:38.9]} 15. exd5 {[%clk 0:02:57.1]}
15... a5 {[%clk 0:02:40]} 16. a3 {[%clk 0:02:55.8]} 16... bxa3 {[%clk
0:01:58.3]} 17. Rxa3 {[%clk 0:02:57.7]} 17... Nfd7 {[%clk 0:01:54.5]} 18. O-O
{[%clk 0:02:55]} 18... Bg5 {[%clk 0:01:49.5]} 19. Rfa1 {[%clk 0:02:48.1]} 19...
Nb6 {[%clk 0:01:39.7]} 20. Nxa5 {[%clk 0:02:37.9]} 20... Qc7 {[%clk 0:01:25.8]}
21. Bxg5 {[%clk 0:02:31]} 21... hxg5 {[%clk 0:01:26.3]} 22. Qxg5 {[%clk
0:02:30]} 22... Nxd5 {[%clk 0:01:08.3]} 23. Bxd5 {[%clk 0:01:48.6]} 23... Qc5+
{[%clk 0:01:08.4]} 24. Kh2 {[%clk 0:01:50]} 24... Qxd5 {[%clk 0:01:09.6]} 25.
Nb7 {[%clk 0:01:49.2]} 25... Qxb7 {[%clk 0:00:43.6]} 26. Rxa8 {[%clk 0:01:49.8]}
26... Rxh3+ {[%clk 0:00:43.5]} 27. Kxh3 {[%clk 0:01:51.7]} 27... Qf3+ {[%clk
0:00:44.6]} 28. Kh4 {[%clk 0:01:50.3]} 28... Qf2+ {[%clk 0:00:42.8]} 29. Kh5
{[%clk 0:01:51.4]} 29... Qh2+ {[%clk 0:00:33.6]} 30. Qh4 {[%clk 0:01:52.3]}
30... g6+ {[%clk 0:00:34.7]} 31. fxg6 {[%clk 0:00:50.4]} 31... fxg6+ {[%clk
0:00:36.6]} 32. Kxg6 {[%clk 0:00:50.4]} 32... Qxh4 {[%clk 0:00:34.9]} 33. Rxb8+
{[%clk 0:00:51.9]} 33... Ke7 {[%clk 0:00:35.6]} 34. g5 {[%clk 0:00:42]} 34... e4
{[%clk 0:00:28]} 35. c4 {[%clk 0:00:38.1]} 35... Kd7 {[%clk 0:00:21.2]} 36. Ra7+
{[%clk 0:00:27.4]} 36... Kc6 {[%clk 0:00:18.5]} 37. Re7 {[%clk 0:00:28.1]} 37...
Qf4 {[%clk 0:00:14.3]} 38. Rbe8 {[%clk 0:00:25.7]} 38... d5 {[%clk 0:00:08]} 39.
cxd5+ {[%clk 0:00:22.9]} 39... Kxd5 {[%clk 0:00:08.9]} 40. Rxe4 {[%clk 0:00:23]}
40... Qf2 {[%clk 0:00:10.1]} 41. R8e5+ {[%clk 0:00:21.7]} 41... Kd6 {[%clk
0:00:11]} 42. b4 {[%clk 0:00:23.4]} 42... Kd7 {[%clk 0:00:09.9]} 43. b5 {[%clk
0:00:24]} 43... Kd6 {[%clk 0:00:11]} 44. b6 {[%clk 0:00:24]} 44... Qf7+ {[%clk
0:00:10.7]} 45. Kxf7 {[%clk 0:00:23.3]} 1-0

[Event "*** Titled Tuesday Blitz"]
[Site "Chess.com"]
[Date "2020.02.04"]
[Round "2"]
[White "Andrei_Belozerov"]
[Black "AvitalBor"]
[Result "1-0"]
[WhiteElo "2576"]
[BlackElo "2742"]
[TimeControl "180+2"]
[EndTime "9:23:26 PST"]
[Termination "Andrei_Belozerov won by resignation"]

1. e4 {[%clk 0:03:01.6]} 1... c5 {[%clk 0:03:01]} 2. Nf3 {[%clk 0:03:01.9]} 2...
d6 {[%clk 0:03:02]} 3. d4 {[%clk 0:02:51.7]} 3... cxd4 {[%clk 0:03:03.9]} 4.
Nxd4 {[%clk 0:02:52.9]} 4... Nf6 {[%clk 0:03:05.2]} 5. Nc3 {[%clk 0:02:54.5]}
5... a6 {[%clk 0:03:06.7]} 6. Be3 {[%clk 0:02:54.7]} 6... Ng4 {[%clk 0:03:07.2]}
7. Bg5 {[%clk 0:02:53.8]} 7... h6 {[%clk 0:03:08.2]} 8. Bh4 {[%clk 0:02:55]}
8... g5 {[%clk 0:03:09.8]} 9. Bg3 {[%clk 0:02:56.2]} 9... Bg7 {[%clk 0:03:11.2]}
10. h3 {[%clk 0:02:55.2]} 10... Ne5 {[%clk 0:03:11.2]} 11. f3 {[%clk 0:02:55.2]}
11... Nbc6 {[%clk 0:03:12]} 12. Bf2 {[%clk 0:02:55.7]} 12... e6 {[%clk
0:03:08.2]} 13. Qd2 {[%clk 0:02:53.7]} 13... Nxd4 {[%clk 0:02:57.6]} 14. Bxd4
{[%clk 0:02:53.8]} 14... Bd7 {[%clk 0:02:57.7]} 15. O-O-O {[%clk 0:02:51.2]}
15... b5 {[%clk 0:02:56.7]} 16. Kb1 {[%clk 0:02:46.8]} 16... b4 {[%clk
0:02:51.1]} 17. Ne2 {[%clk 0:02:47.1]} 17... a5 {[%clk 0:02:47.8]} 18. Ng3
{[%clk 0:02:42]} 18... h5 {[%clk 0:02:48.7]} 19. Be2 {[%clk 0:02:19.7]} 19... h4
{[%clk 0:02:46.9]} 20. Nf1 {[%clk 0:02:19.8]} 20... Qc7 {[%clk 0:02:36.5]} 21.
Qxg5 {[%clk 0:02:08.1]} 21... Rc8 {[%clk 0:02:07.1]} 22. Ne3 {[%clk 0:01:45.4]}
22... Bh6 {[%clk 0:01:44.4]} 23. Qxh4 {[%clk 0:01:38.8]} 23... Ng6 {[%clk
0:01:42.9]} 24. Qf2 {[%clk 0:01:33]} 24... e5 {[%clk 0:01:34.1]} 25. Nc4 {[%clk
0:01:14.5]} 25... exd4 {[%clk 0:01:33.4]} 26. Qxd4 {[%clk 0:01:15.6]} 26... O-O
{[%clk 0:01:34.3]} 27. Qxd6 {[%clk 0:01:12.1]} 27... Be6 {[%clk 0:01:31.1]} 28.
Qxc7 {[%clk 0:01:06.9]} 28... Rxc7 {[%clk 0:01:33]} 29. b3 {[%clk 0:01:03]}
29... a4 {[%clk 0:01:27.5]} 30. g3 {[%clk 0:01:03.5]} 30... axb3 {[%clk
0:01:23.9]} 31. cxb3 {[%clk 0:01:04.7]} 31... f5 {[%clk 0:00:46.5]} 32. Rd6
{[%clk 0:00:59.8]} 32... Re8 {[%clk 0:00:47.6]} 33. Bd3 {[%clk 0:00:56]} 33...
Bf8 {[%clk 0:00:44.7]} 34. Rxe6 {[%clk 0:00:56.4]} 34... Rxe6 {[%clk 0:00:44.2]}
35. exf5 {[%clk 0:00:57.7]} 35... Rf6 {[%clk 0:00:33.3]} 36. fxg6 {[%clk
0:00:57]} 36... Rxf3 {[%clk 0:00:34.3]} 37. Be4 {[%clk 0:00:33.7]} 37... Rxg3
{[%clk 0:00:34.4]} 38. h4 {[%clk 0:00:29.4]} 38... Re7 {[%clk 0:00:34]} 39. Bd5+
{[%clk 0:00:29.8]} 39... Kg7 {[%clk 0:00:34.7]} 40. h5 {[%clk 0:00:31]} 40...
Kh6 {[%clk 0:00:35.9]} 41. Nd6 {[%clk 0:00:29.9]} 41... Rg5 {[%clk 0:00:20]} 42.
Nf7+ {[%clk 0:00:30.6]} 42... Rxf7 {[%clk 0:00:21.4]} 43. Bxf7 {[%clk
0:00:31.9]} 43... Rg2 {[%clk 0:00:22.5]} 44. Bd5 {[%clk 0:00:31.9]} 44... Rb2+
{[%clk 0:00:23]} 45. Kxb2 {[%clk 0:00:32.1]} 1-0

[Event "*** Titled Tuesday Blitz"]
[Site "Chess.com"]
[Date "2020.02.04"]
[Round "2"]
[White "ChadBiryani"]
[Black "Eraschenkov"]
[Result "0-1"]
[WhiteElo "2298"]
[BlackElo "2607"]
[TimeControl "180+2"]
[EndTime "9:23:36 PST"]
[Termination "Eraschenkov won by resignation"]

1. d4 {[%clk 0:03:01.9]} 1... Nf6 {[%clk 0:02:59.8]} 2. Bf4 {[%clk 0:03:00.9]}
2... e6 {[%clk 0:03:00.4]} 3. Nc3 {[%clk 0:02:55.2]} 3... d5 {[%clk 0:02:57.1]}
4. e3 {[%clk 0:02:51.1]} 4... Bb4 {[%clk 0:02:45.7]} 5. Bd3 {[%clk 0:02:48.6]}
5... c5 {[%clk 0:02:36.2]} 6. dxc5 {[%clk 0:02:47.8]} 6... Nbd7 {[%clk
0:02:27.4]} 7. Ne2 {[%clk 0:02:44.2]} 7... Nxc5 {[%clk 0:02:22]} 8. O-O {[%clk
0:02:43.5]} 8... O-O {[%clk 0:02:20.4]} 9. h3 {[%clk 0:02:37.6]} 9... Ncd7
{[%clk 0:02:17.7]} 10. a3 {[%clk 0:02:31.3]} 10... Be7 {[%clk 0:02:14.7]} 11.
Bh2 {[%clk 0:02:26.8]} 11... b6 {[%clk 0:02:10.1]} 12. Nb5 {[%clk 0:02:24]}
12... Bb7 {[%clk 0:02:01.9]} 13. c4 {[%clk 0:02:10]} 13... Nc5 {[%clk
0:01:43.6]} 14. Bc2 {[%clk 0:02:02.5]} 14... dxc4 {[%clk 0:01:41.1]} 15. Nec3
{[%clk 0:01:49.7]} 15... a6 {[%clk 0:01:18.5]} 16. Nd6 {[%clk 0:01:43.6]} 16...
b5 {[%clk 0:01:16.8]} 17. Nxb7 {[%clk 0:01:42]} 17... Nxb7 {[%clk 0:01:17.3]}
18. Qf3 {[%clk 0:01:43.6]} 18... Nc5 {[%clk 0:01:08.6]} 19. Rfd1 {[%clk
0:01:25.5]} 19... Qb6 {[%clk 0:01:08.8]} 20. g4 {[%clk 0:01:26.3]} 20... Rad8
{[%clk 0:01:00.7]} 21. Be5 {[%clk 0:01:19.7]} 21... Nfd7 {[%clk 0:00:54.4]} 22.
Bd4 {[%clk 0:01:16.1]} 22... Qc7 {[%clk 0:00:53.9]} 23. Ne4 {[%clk 0:01:05.5]}
23... g6 {[%clk 0:00:47.4]} 24. Ng3 {[%clk 0:00:55]} 24... e5 {[%clk 0:00:28.6]}
25. Bc3 {[%clk 0:00:56.2]} 25... Nb6 {[%clk 0:00:23.6]} 26. Rxd8 {[%clk
0:00:20.7]} 26... Rxd8 {[%clk 0:00:24]} 27. Nh5 {[%clk 0:00:20.2]} 27... gxh5
{[%clk 0:00:18]} 28. Bxh7+ {[%clk 0:00:18]} 28... Kf8 {[%clk 0:00:17.1]} 29. Bg6
{[%clk 0:00:18.2]} 29... Bd6 {[%clk 0:00:14.8]} 30. gxh5 {[%clk 0:00:19.3]}
30... Qe7 {[%clk 0:00:14.6]} 31. Kh1 {[%clk 0:00:12.2]} 31... Ke8 {[%clk
0:00:14.8]} 32. Bf5 {[%clk 0:00:11.6]} 32... e4 {[%clk 0:00:12.9]} 33. Qg4
{[%clk 0:00:12.2]} 33... Nd5 {[%clk 0:00:12.2]} 34. Ba5 {[%clk 0:00:11.3]} 34...
Bc7 {[%clk 0:00:11.2]} 35. Bb4 {[%clk 0:00:07.5]} 35... Nxb4 {[%clk 0:00:10.4]}
36. axb4 {[%clk 0:00:09.4]} 36... Nd3 {[%clk 0:00:08.5]} 37. Rxa6 {[%clk
0:00:06.7]} 37... Nxf2+ {[%clk 0:00:09]} 38. Kg2 {[%clk 0:00:08.2]} 38... Nxg4
{[%clk 0:00:10.6]} 39. hxg4 {[%clk 0:00:09]} 39... Qe5 {[%clk 0:00:11.9]} 0-1

[Event "*** Titled Tuesday Blitz"]
[Site "Chess.com"]
[Date "2020.02.04"]
[Round "2"]
[White "2nd_life"]
[Black "Saloni1299"]
[Result "1-0"]
[WhiteElo "2434"]
[BlackElo "2117"]
[TimeControl "180+2"]
[EndTime "9:23:37 PST"]
[Termination "2nd_life won on time"]

1. e4 {[%clk 0:03:01.9]} 1... e6 {[%clk 0:03:00.5]} 2. d4 {[%clk 0:03:02.3]}
2... d5 {[%clk 0:03:01.3]} 3. Nc3 {[%clk 0:03:03.5]} 3... Bb4 {[%clk 0:03:01.2]}
4. e5 {[%clk 0:03:04.4]} 4... c5 {[%clk 0:03:02.1]} 5. a3 {[%clk 0:03:05.6]}
5... Bxc3+ {[%clk 0:03:03.1]} 6. bxc3 {[%clk 0:03:07.5]} 6... Ne7 {[%clk
0:03:00.3]} 7. h4 {[%clk 0:03:04.9]} 7... Nbc6 {[%clk 0:02:56.3]} 8. h5 {[%clk
0:03:02.5]} 8... h6 {[%clk 0:02:55.7]} 9. a4 {[%clk 0:02:55.4]} 9... Qa5 {[%clk
0:02:42.2]} 10. Bd2 {[%clk 0:02:54.4]} 10... Bd7 {[%clk 0:02:36.6]} 11. Nf3
{[%clk 0:02:53.7]} 11... O-O-O {[%clk 0:02:33]} 12. Qb1 {[%clk 0:02:45.8]} 12...
c4 {[%clk 0:02:32.5]} 13. g3 {[%clk 0:02:30.1]} 13... f6 {[%clk 0:02:28.7]} 14.
Bg2 {[%clk 0:02:23.9]} 14... fxe5 {[%clk 0:02:23.5]} 15. Nxe5 {[%clk 0:02:23.9]}
15... Nxe5 {[%clk 0:02:24.4]} 16. dxe5 {[%clk 0:02:25]} 16... Bc6 {[%clk
0:02:15.8]} 17. Rh4 {[%clk 0:01:03.7]} 17... Nf5 {[%clk 0:02:09.2]} 18. Rd4
{[%clk 0:00:53]} 18... Qc7 {[%clk 0:01:23.8]} 19. Bf4 {[%clk 0:00:44]} 19...
Rdf8 {[%clk 0:01:16.1]} 20. Qc1 {[%clk 0:00:38.1]} 20... Nxd4 {[%clk 0:01:12.3]}
21. cxd4 {[%clk 0:00:38.8]} 21... Rxf4 {[%clk 0:01:09]} 22. Qxf4 {[%clk
0:00:38.5]} 22... Qe7 {[%clk 0:01:08.5]} 23. c3 {[%clk 0:00:36.9]} 23... Rf8
{[%clk 0:01:07.7]} 24. Qg4 {[%clk 0:00:29.4]} 24... Be8 {[%clk 0:01:02.7]} 25.
a5 {[%clk 0:00:28.9]} 25... Rf5 {[%clk 0:00:58.1]} 26. Bxd5 {[%clk 0:00:20.4]}
26... Bxh5 {[%clk 0:00:56.4]} 27. Qh3 {[%clk 0:00:21.3]} 27... Kc7 {[%clk
0:00:19.8]} 28. Be4 {[%clk 0:00:19.1]} 28... Bg6 {[%clk 0:00:09.5]} 29. Bxf5
{[%clk 0:00:18.4]} 29... Bxf5 {[%clk 0:00:11]} 30. Qh4 {[%clk 0:00:18.2]} 30...
Qxh4 {[%clk 0:00:09.9]} 31. gxh4 {[%clk 0:00:19]} 31... g6 {[%clk 0:00:10.2]}
32. Kd2 {[%clk 0:00:19.6]} 32... h5 {[%clk 0:00:11]} 33. Ke3 {[%clk 0:00:18.1]}
33... b5 {[%clk 0:00:11.3]} 34. axb6+ {[%clk 0:00:18.5]} 34... axb6 {[%clk
0:00:12.4]} 35. d5 {[%clk 0:00:18.5]} 35... exd5 {[%clk 0:00:09.3]} 36. Kd4
{[%clk 0:00:19.8]} 36... Kc6 {[%clk 0:00:09.7]} 37. Ra8 {[%clk 0:00:18.5]} 37...
b5 {[%clk 0:00:07.1]} 38. Rd8 {[%clk 0:00:19.5]} 38... Be4 {[%clk 0:00:05.9]}
39. Rd6+ {[%clk 0:00:20.3]} 39... Kc7 {[%clk 0:00:06.2]} 40. Kc5 {[%clk
0:00:21.2]} 1-0

[Event "*** Titled Tuesday Blitz"]
[Site "Chess.com"]
[Date "2020.02.04"]
[Round "2"]
[White "Irishchessman16"]
[Black "swayamsm"]
[Result "0-1"]
[WhiteElo "2234"]
[BlackElo "2512"]
[TimeControl "180+2"]
[EndTime "9:23:41 PST"]
[Termination "swayamsm won by checkmate"]

1. e4 {[%clk 0:03:01.9]} 1... e6 {[%clk 0:03:00.3]} 2. d4 {[%clk 0:03:01]} 2...
d5 {[%clk 0:03:02.2]} 3. Nc3 {[%clk 0:03:01.5]} 3... Nf6 {[%clk 0:02:55.8]} 4.
e5 {[%clk 0:03:02]} 4... Nfd7 {[%clk 0:02:56.3]} 5. f4 {[%clk 0:03:03.5]} 5...
c5 {[%clk 0:02:57.8]} 6. Nf3 {[%clk 0:03:05.1]} 6... Nc6 {[%clk 0:02:59.2]} 7.
Be3 {[%clk 0:03:05.7]} 7... Be7 {[%clk 0:02:57.8]} 8. Qd2 {[%clk 0:03:04.7]}
8... O-O {[%clk 0:02:40]} 9. dxc5 {[%clk 0:02:59.7]} 9... Nxc5 {[%clk
0:02:40.5]} 10. O-O-O {[%clk 0:02:58.9]} 10... a6 {[%clk 0:02:40.2]} 11. Kb1
{[%clk 0:02:44.5]} 11... b5 {[%clk 0:02:39.8]} 12. Qf2 {[%clk 0:02:43.8]} 12...
Na4 {[%clk 0:02:39.6]} 13. Ne2 {[%clk 0:02:37.2]} 13... Qa5 {[%clk 0:02:28]} 14.
Bd2 {[%clk 0:02:05.6]} 14... b4 {[%clk 0:02:02.6]} 15. Ned4 {[%clk 0:01:54.4]}
15... Bd7 {[%clk 0:02:02.4]} 16. Nxc6 {[%clk 0:01:38.3]} 16... Bxc6 {[%clk
0:02:04.1]} 17. Nd4 {[%clk 0:01:39]} 17... Rfc8 {[%clk 0:02:05.2]} 18. Nb3
{[%clk 0:01:32]} 18... Qc7 {[%clk 0:02:03]} 19. Bd3 {[%clk 0:01:30.2]} 19... Bb5
{[%clk 0:02:03.2]} 20. Rc1 {[%clk 0:01:23.6]} 20... Bc4 {[%clk 0:01:58.3]} 21.
Rhe1 {[%clk 0:01:22.2]} 21... a5 {[%clk 0:01:59]} 22. f5 {[%clk 0:01:20.9]}
22... Bc5 {[%clk 0:01:50.9]} 23. Qh4 {[%clk 0:01:11]} 23... Bxd3 {[%clk
0:01:19.4]} 24. cxd3 {[%clk 0:01:08.2]} 24... exf5 {[%clk 0:01:16.7]} 25. Nxc5
{[%clk 0:00:59.4]} 25... Nxc5 {[%clk 0:01:15.7]} 26. d4 {[%clk 0:01:00.6]} 26...
Ne4 {[%clk 0:01:15.2]} 27. Rxc7 {[%clk 0:00:59.3]} 27... Nxd2+ {[%clk
0:01:13.4]} 28. Kc2 {[%clk 0:00:58.8]} 28... Rxc7+ {[%clk 0:01:13]} 29. Kxd2
{[%clk 0:00:59.7]} 29... Rac8 {[%clk 0:01:14.8]} 30. Re2 {[%clk 0:00:58.1]}
30... h6 {[%clk 0:01:12.6]} 31. e6 {[%clk 0:00:58.7]} 31... fxe6 {[%clk
0:01:12.3]} 32. Qf4 {[%clk 0:00:51.4]} 32... Rc1 {[%clk 0:01:11.4]} 33. Qe5
{[%clk 0:00:48]} 33... R8c6 {[%clk 0:01:09.6]} 34. Ke3 {[%clk 0:00:45.9]} 34...
Rf1 {[%clk 0:01:05.6]} 35. Qb8+ {[%clk 0:00:43.1]} 35... Kh7 {[%clk 0:01:04.5]}
36. Qe8 {[%clk 0:00:44.1]} 36... Rcc1 {[%clk 0:00:41.3]} 37. Qxe6 {[%clk
0:00:35.2]} 37... Rcd1 {[%clk 0:00:41.9]} 38. g3 {[%clk 0:00:33.3]} 38... g5
{[%clk 0:00:32.2]} 39. Qxd5 {[%clk 0:00:22.6]} 39... Kg6 {[%clk 0:00:30.6]} 40.
Qe6+ {[%clk 0:00:20.9]} 40... Kh5 {[%clk 0:00:30.9]} 41. g4+ {[%clk 0:00:19.9]}
41... Kxg4 {[%clk 0:00:24]} 42. Qxh6 {[%clk 0:00:17.1]} 42... Rf3# {[%clk
0:00:23.9]} 0-1

[Event "*** Titled Tuesday Blitz"]
[Site "Chess.com"]
[Date "2020.02.04"]
[Round "2"]
[White "GMKrikor"]
[Black "messiboca"]
[Result "0-1"]
[WhiteElo "2839"]
[BlackElo "2662"]
[TimeControl "180+2"]
[EndTime "9:23:43 PST"]
[Termination "messiboca won by resignation"]

1. Nf3 {[%clk 0:03:01.9]} 1... c5 {[%clk 0:02:56.6]} 2. c4 {[%clk 0:03:01.5]}
2... Nf6 {[%clk 0:02:55.9]} 3. Nc3 {[%clk 0:03:00.9]} 3... b6 {[%clk 0:02:55.8]}
4. g3 {[%clk 0:02:43.4]} 4... Bb7 {[%clk 0:02:56.3]} 5. Bg2 {[%clk 0:02:45.1]}
5... g6 {[%clk 0:02:57.6]} 6. b3 {[%clk 0:02:45.1]} 6... Bg7 {[%clk 0:02:57.1]}
7. Bb2 {[%clk 0:02:46.8]} 7... O-O {[%clk 0:02:57.6]} 8. O-O {[%clk 0:02:48.5]}
8... Na6 {[%clk 0:02:51.4]} 9. d4 {[%clk 0:02:48.9]} 9... d5 {[%clk 0:02:50.6]}
10. dxc5 {[%clk 0:02:05.6]} 10... Nxc5 {[%clk 0:02:49]} 11. Ne5 {[%clk 0:02:03]}
11... Qb8 {[%clk 0:02:05.6]} 12. Nd3 {[%clk 0:01:17.9]} 12... dxc4 {[%clk
0:01:55.7]} 13. bxc4 {[%clk 0:00:45.9]} 13... Bxg2 {[%clk 0:01:55.7]} 14. Kxg2
{[%clk 0:00:47.8]} 14... Qb7+ {[%clk 0:01:56.5]} 15. Kg1 {[%clk 0:00:49]} 15...
Rac8 {[%clk 0:01:50.8]} 16. Rc1 {[%clk 0:00:45.6]} 16... Ne6 {[%clk 0:01:34.4]}
17. Nb5 {[%clk 0:00:36.5]} 17... Rfd8 {[%clk 0:01:22.9]} 18. f3 {[%clk
0:00:26.9]} 18... a6 {[%clk 0:00:54.4]} 19. Na3 {[%clk 0:00:28.2]} 19... h5
{[%clk 0:00:50.1]} 20. Qb3 {[%clk 0:00:25.3]} 20... h4 {[%clk 0:00:49.5]} 21.
Rfd1 {[%clk 0:00:22.7]} 21... Ng5 {[%clk 0:00:18.7]} 22. gxh4 {[%clk 0:00:16.5]}
22... Ne6 {[%clk 0:00:14.2]} 23. c5 {[%clk 0:00:11]} 23... b5 {[%clk 0:00:13.5]}
24. Nf2 {[%clk 0:00:11.9]} 24... Nf4 {[%clk 0:00:11.4]} 25. Qe3 {[%clk
0:00:11.8]} 25... N6d5 {[%clk 0:00:12]} 26. Qd2 {[%clk 0:00:06.9]} 26... Bxb2
{[%clk 0:00:12.7]} 27. Qxb2 {[%clk 0:00:08]} 27... Ne3 {[%clk 0:00:13]} 28.
Rxd8+ {[%clk 0:00:08.1]} 28... Rxd8 {[%clk 0:00:14.2]} 29. Ne4 {[%clk
0:00:03.6]} 29... Qd7 {[%clk 0:00:12.1]} 30. Qc3 {[%clk 0:00:03.2]} 30... Nfd5
{[%clk 0:00:12.4]} 31. Qe1 {[%clk 0:00:04]} 31... Rc8 {[%clk 0:00:09.3]} 32. Qg3
{[%clk 0:00:03.6]} 32... Qe6 {[%clk 0:00:10.3]} 33. Nb1 {[%clk 0:00:03.9]} 33...
Nf5 {[%clk 0:00:11.3]} 34. Qf2 {[%clk 0:00:03.9]} 34... Nf6 {[%clk 0:00:12.5]}
35. Nbc3 {[%clk 0:00:03.6]} 35... Nh5 {[%clk 0:00:13.3]} 36. Ng5 {[%clk
0:00:05]} 36... Qe5 {[%clk 0:00:13.3]} 37. Nce4 {[%clk 0:00:06.3]} 37... Nf4
{[%clk 0:00:14.1]} 38. Kh1 {[%clk 0:00:06.8]} 38... f6 {[%clk 0:00:13.7]} 39. e3
{[%clk 0:00:08.4]} 39... fxg5 {[%clk 0:00:14.8]} 40. exf4 {[%clk 0:00:09.5]}
40... Qxf4 {[%clk 0:00:16.3]} 41. Nxg5 {[%clk 0:00:09.6]} 41... Qxc1+ {[%clk
0:00:15.5]} 0-1

[Event "*** Titled Tuesday Blitz"]
[Site "Chess.com"]
[Date "2020.02.04"]
[Round "2"]
[White "bhavesh1810"]
[Black "TheBigBoss04"]
[Result "0-1"]
[WhiteElo "2088"]
[BlackElo "2704"]
[TimeControl "180+2"]
[EndTime "9:23:47 PST"]
[Termination "TheBigBoss04 won by resignation"]

1. e4 {[%clk 0:03:01.9]} 1... g6 {[%clk 0:03:00.7]} 2. d4 {[%clk 0:03:02.1]}
2... Bg7 {[%clk 0:03:01.8]} 3. Nc3 {[%clk 0:03:02.6]} 3... d6 {[%clk 0:03:01.7]}
4. f4 {[%clk 0:03:03.9]} 4... a6 {[%clk 0:03:01.6]} 5. a4 {[%clk 0:03:03.7]}
5... Nc6 {[%clk 0:02:50.9]} 6. d5 {[%clk 0:02:59.3]} 6... Nd4 {[%clk 0:02:51.3]}
7. Be3 {[%clk 0:03:00.4]} 7... c5 {[%clk 0:02:51.9]} 8. Nge2 {[%clk 0:03:00.4]}
8... Qb6 {[%clk 0:02:46.2]} 9. Ra2 {[%clk 0:02:56.4]} 9... Nxe2 {[%clk
0:02:37.9]} 10. Bxe2 {[%clk 0:02:58.3]} 10... Nf6 {[%clk 0:02:10.3]} 11. O-O
{[%clk 0:02:57.3]} 11... O-O {[%clk 0:02:10.8]} 12. Bc4 {[%clk 0:02:50.6]} 12...
Ng4 {[%clk 0:02:08.9]} 13. Bc1 {[%clk 0:02:35.1]} 13... Bd4+ {[%clk 0:02:08.6]}
14. Kh1 {[%clk 0:02:36.7]} 14... Nf2+ {[%clk 0:02:08.9]} 15. Rxf2 {[%clk
0:02:38.2]} 15... Bxf2 {[%clk 0:02:10.8]} 16. a5 {[%clk 0:02:39.9]} 16... Qd8
{[%clk 0:02:08.1]} 17. Qf3 {[%clk 0:02:38.2]} 17... Bd4 {[%clk 0:02:07.5]} 18.
Na4 {[%clk 0:02:39.2]} 18... Bg7 {[%clk 0:01:51.8]} 19. Nb6 {[%clk 0:02:38.6]}
19... Rb8 {[%clk 0:01:52.9]} 20. c3 {[%clk 0:02:36.2]} 20... Bd7 {[%clk
0:01:50.3]} 21. Be3 {[%clk 0:02:36.4]} 21... Bb5 {[%clk 0:01:50.3]} 22. Qe2
{[%clk 0:02:26.4]} 22... Bxc4 {[%clk 0:01:50.1]} 23. Qxc4 {[%clk 0:02:28.3]}
23... Qe8 {[%clk 0:01:47.7]} 24. Bg1 {[%clk 0:02:26]} 24... e6 {[%clk
0:01:41.7]} 25. Ra1 {[%clk 0:02:27.2]} 25... exd5 {[%clk 0:01:30.7]} 26. Nxd5
{[%clk 0:02:29.1]} 26... Qe6 {[%clk 0:01:26.9]} 27. f5 {[%clk 0:02:30.5]} 27...
Qe5 {[%clk 0:01:26.8]} 28. Rf1 {[%clk 0:02:24.7]} 28... Rfe8 {[%clk 0:01:25]}
29. f6 {[%clk 0:02:25.6]} 29... Bf8 {[%clk 0:01:25.1]} 30. Re1 {[%clk
0:02:08.7]} 30... Re6 {[%clk 0:01:16.1]} 31. Bf2 {[%clk 0:02:09.8]} 31... Qg5
{[%clk 0:01:06.3]} 32. Bg3 {[%clk 0:01:57.6]} 32... Rbe8 {[%clk 0:01:06.9]} 33.
Bf4 {[%clk 0:01:58.7]} 33... Qh4 {[%clk 0:01:00.6]} 34. g3 {[%clk 0:01:56.1]}
34... Qh5 {[%clk 0:00:57.7]} 35. Kg2 {[%clk 0:01:56.1]} 35... g5 {[%clk
0:00:56.4]} 36. Bc1 {[%clk 0:01:54.9]} 36... Qg6 {[%clk 0:00:56.6]} 37. Qa4
{[%clk 0:00:45.1]} 37... Rxe4 {[%clk 0:00:20.2]} 38. Qxe8 {[%clk 0:00:43.9]}
38... Rxe8 {[%clk 0:00:18.5]} 39. Rxe8 {[%clk 0:00:45.8]} 39... Qc2+ {[%clk
0:00:17.4]} 40. Kf3 {[%clk 0:00:23.6]} 40... Qf5+ {[%clk 0:00:17.8]} 41. Ke2
{[%clk 0:00:22.8]} 41... Qxd5 {[%clk 0:00:17.6]} 42. h4 {[%clk 0:00:22.2]} 42...
h6 {[%clk 0:00:16.6]} 43. hxg5 {[%clk 0:00:23]} 43... hxg5 {[%clk 0:00:17.9]}
44. Rb8 {[%clk 0:00:21.5]} 44... Qg2+ {[%clk 0:00:17.9]} 45. Kd1 {[%clk
0:00:22.5]} 45... Qxg3 {[%clk 0:00:18]} 46. Rxb7 {[%clk 0:00:22.7]} 46... Qg1+
{[%clk 0:00:18.3]} 47. Kc2 {[%clk 0:00:23.5]} 47... Qg2+ {[%clk 0:00:20.2]} 48.
Kb1 {[%clk 0:00:25.2]} 48... Qxb7 {[%clk 0:00:22.1]} 0-1